[Event "Early-Titled-Tuesday-Blitz-September-05-2023"]
[Site "Chess.com"]
[Date "2023.09.05"]
[Round "6"]
[White "Daniel_Salinas"]
[Black "korbul"]
[Result "1-0"]
[WhiteElo "2317"]
[BlackElo "2588"]
[TimeControl "180+1"]
[EndTime "9:04:10 PDT"]
[Termination "Daniel_Salinas won by resignation"]

1. d4 {[%clk 0:02:47.8]} 1... Nf6 {[%clk 0:02:59.4]} 2. c4 {[%clk 0:02:47.6]}
2... e6 {[%clk 0:02:59.6]} 3. g3 {[%clk 0:02:45.3]} 3... d5 {[%clk 0:02:59]} 4.
Nf3 {[%clk 0:02:45.1]} 4... Be7 {[%clk 0:02:59]} 5. Bg2 {[%clk 0:02:45.7]} 5...
O-O {[%clk 0:02:59]} 6. O-O {[%clk 0:02:46.4]} 6... c6 {[%clk 0:02:59.5]} 7. Nc3
{[%clk 0:02:46.8]} 7... Nbd7 {[%clk 0:02:59.6]} 8. Qd3 {[%clk 0:02:46.2]} 8...
b6 {[%clk 0:02:59.1]} 9. b3 {[%clk 0:02:46.5]} 9... Ba6 {[%clk 0:02:58.7]} 10.
e4 {[%clk 0:02:45.7]} 10... c5 {[%clk 0:02:58.6]} 11. exd5 {[%clk 0:02:23.6]}
11... exd5 {[%clk 0:02:57.9]} 12. Nb5 {[%clk 0:02:23.5]} 12... cxd4 {[%clk
0:02:47.4]} 13. Nfxd4 {[%clk 0:02:22.4]} 13... Nc5 {[%clk 0:02:39.7]} 14. Qf3
{[%clk 0:02:20.3]} 14... Rc8 {[%clk 0:02:27]} 15. cxd5 {[%clk 0:02:12.9]} 15...
Nce4 {[%clk 0:02:25.2]} 16. a4 {[%clk 0:02:01.3]} 16... Qxd5 {[%clk 0:02:17.2]}
17. Re1 {[%clk 0:01:57.5]} 17... Bb4 {[%clk 0:01:57.7]} 18. Rxe4 {[%clk
0:01:49.7]} 18... Nxe4 {[%clk 0:01:54.5]} 19. Qxe4 {[%clk 0:01:50.6]} 19... Qxe4
{[%clk 0:01:53.5]} 20. Bxe4 {[%clk 0:01:51.5]} 20... Rfe8 {[%clk 0:01:51.8]} 21.
f3 {[%clk 0:01:41]} 21... Bc5 {[%clk 0:01:46]} 22. Kg2 {[%clk 0:01:33.6]} 22...
g6 {[%clk 0:01:43.5]} 23. Bb2 {[%clk 0:01:26.8]} 23... f5 {[%clk 0:01:31.4]} 24.
Bd5+ {[%clk 0:01:24.3]} 24... Kf8 {[%clk 0:01:31.7]} 25. Ne6+ {[%clk 0:01:21.9]}
25... Ke7 {[%clk 0:01:29.4]} 26. Nbc7 {[%clk 0:00:55.5]} 26... Bd3 {[%clk
0:01:16.7]} 27. Nxe8 {[%clk 0:00:54.9]} 27... Kxe8 {[%clk 0:01:14.2]} 28. Re1
{[%clk 0:00:54.7]} 28... Kd7 {[%clk 0:01:13.8]} 29. Rd1 {[%clk 0:00:44.6]} 29...
Bc2 {[%clk 0:01:10.5]} 30. Rd2 {[%clk 0:00:43.4]} 1-0

[Event "Early-Titled-Tuesday-Blitz-September-05-2023"]
[Site "Chess.com"]
[Date "2023.09.05"]
[Round "6"]
[White "Iskusnyh"]
[Black "Apocalyps999"]
[Result "1-0"]
[WhiteElo "2615"]
[BlackElo "2301"]
[TimeControl "180+1"]
[EndTime "9:04:16 PDT"]
[Termination "Iskusnyh won by resignation"]

1. d4 {[%clk 0:03:00.9]} 1... d5 {[%clk 0:02:59.4]} 2. c4 {[%clk 0:03:01.2]}
2... e6 {[%clk 0:02:53.6]} 3. Nf3 {[%clk 0:03:01.1]} 3... Nf6 {[%clk 0:02:52.8]}
4. g3 {[%clk 0:03:01.3]} 4... Bb4+ {[%clk 0:02:51.8]} 5. Nbd2 {[%clk 0:02:58.3]}
5... O-O {[%clk 0:02:51.2]} 6. Bg2 {[%clk 0:02:54.8]} 6... dxc4 {[%clk
0:02:50.5]} 7. Qc2 {[%clk 0:02:37.2]} 7... a6 {[%clk 0:02:39.9]} 8. Qxc4 {[%clk
0:02:32.6]} 8... Bxd2+ {[%clk 0:02:35.5]} 9. Bxd2 {[%clk 0:02:31.1]} 9... b5
{[%clk 0:02:35.1]} 10. Qc2 {[%clk 0:02:30.6]} 10... Bb7 {[%clk 0:02:36]} 11. Rc1
{[%clk 0:02:28.8]} 11... Nc6 {[%clk 0:02:30.7]} 12. e3 {[%clk 0:02:21]} 12...
Rc8 {[%clk 0:02:29.3]} 13. O-O {[%clk 0:02:14]} 13... Ne7 {[%clk 0:02:05.7]} 14.
Ba5 {[%clk 0:02:12.9]} 14... Ned5 {[%clk 0:01:57.3]} 15. Ne5 {[%clk 0:02:09]}
15... Qe7 {[%clk 0:01:47.1]} 16. a3 {[%clk 0:02:06.4]} 16... Ba8 {[%clk
0:01:25.1]} 17. e4 {[%clk 0:02:03.4]} 17... Nb6 {[%clk 0:01:22.5]} 18. Bxb6
{[%clk 0:01:56.6]} 18... cxb6 {[%clk 0:01:18.3]} 19. Qxc8 {[%clk 0:01:56.1]}
19... Rxc8 {[%clk 0:01:16.8]} 20. Rxc8+ {[%clk 0:01:55.2]} 20... Ne8 {[%clk
0:01:17.5]} 21. Rxa8 {[%clk 0:01:54.9]} 21... f6 {[%clk 0:01:17.7]} 22. Nc6
{[%clk 0:01:47.1]} 22... Qd7 {[%clk 0:01:17.1]} 23. Rc1 {[%clk 0:01:41.4]} 23...
h6 {[%clk 0:01:13.3]} 24. Ra7 {[%clk 0:01:19.4]} 24... Qd6 {[%clk 0:01:07.1]}
25. e5 {[%clk 0:01:18]} 25... fxe5 {[%clk 0:01:04.9]} 26. Ra8 {[%clk 0:01:18]}
26... Kf7 {[%clk 0:00:55.7]} 27. Rd8 {[%clk 0:01:10.2]} 27... Qf8 {[%clk
0:00:44.9]} 28. Nxe5+ {[%clk 0:01:09.4]} 28... Kg8 {[%clk 0:00:44.9]} 29. Rcc8
{[%clk 0:01:07.5]} 1-0

[Event "Early-Titled-Tuesday-Blitz-September-05-2023"]
[Site "Chess.com"]
[Date "2023.09.05"]
[Round "6"]
[White "Ural_bogatyr"]
[Black "AradNazari"]
[Result "0-1"]
[WhiteElo "2546"]
[BlackElo "2711"]
[TimeControl "180+1"]
[EndTime "9:04:34 PDT"]
[Termination "AradNazari won by checkmate"]

1. d4 {[%clk 0:02:12.7]} 1... Nf6 {[%clk 0:02:53.8]} 2. Nc3 {[%clk 0:02:12.2]}
2... g6 {[%clk 0:02:54.4]} 3. e4 {[%clk 0:02:11]} 3... c5 {[%clk 0:02:47.6]} 4.
dxc5 {[%clk 0:02:08.6]} 4... Qc7 {[%clk 0:02:44.8]} 5. Be3 {[%clk 0:02:05.9]}
5... Bg7 {[%clk 0:02:43.3]} 6. Bd4 {[%clk 0:01:59.3]} 6... O-O {[%clk
0:02:42.4]} 7. e5 {[%clk 0:01:55.7]} 7... Ne8 {[%clk 0:02:37]} 8. Nd5 {[%clk
0:01:55.1]} 8... Qd8 {[%clk 0:02:37.6]} 9. f4 {[%clk 0:01:51.4]} 9... d6 {[%clk
0:02:33.4]} 10. cxd6 {[%clk 0:01:48.8]} 10... exd6 {[%clk 0:02:33.6]} 11. Nf3
{[%clk 0:01:49]} 11... Nc6 {[%clk 0:02:30.4]} 12. Bc3 {[%clk 0:01:42.8]} 12...
Bg4 {[%clk 0:02:30]} 13. Be2 {[%clk 0:01:37.2]} 13... Bxf3 {[%clk 0:02:29.3]}
14. Bxf3 {[%clk 0:01:38]} 14... dxe5 {[%clk 0:02:29.6]} 15. fxe5 {[%clk
0:01:34.7]} 15... Nxe5 {[%clk 0:02:22.1]} 16. O-O {[%clk 0:01:34.5]} 16... Nc7
{[%clk 0:02:10.1]} 17. Bxe5 {[%clk 0:00:57.1]} 17... Bxe5 {[%clk 0:02:09.3]} 18.
c3 {[%clk 0:00:57.3]} 18... Qd6 {[%clk 0:01:48.7]} 19. g3 {[%clk 0:00:49]} 19...
Rad8 {[%clk 0:01:47.1]} 20. c4 {[%clk 0:00:36]} 20... Bxb2 {[%clk 0:01:03.1]}
21. Rb1 {[%clk 0:00:35.5]} 21... Qc5+ {[%clk 0:01:03.7]} 22. Kh1 {[%clk
0:00:34.7]} 22... Qxc4 {[%clk 0:01:04.4]} 23. Rxb2 {[%clk 0:00:17.5]} 23... Nxd5
{[%clk 0:01:04.8]} 24. Qb3 {[%clk 0:00:16.5]} 24... Qxf1# {[%clk 0:01:00.5]} 0-1

[Event "Early-Titled-Tuesday-Blitz-September-05-2023"]
[Site "Chess.com"]
[Date "2023.09.05"]
[Round "6"]
[White "angryspacevoid"]
[Black "IngOscarArdila"]
[Result "1-0"]
[WhiteElo "2610"]
[BlackElo "2404"]
[TimeControl "180+1"]
[EndTime "9:04:38 PDT"]
[Termination "angryspacevoid won by checkmate"]

1. e4 {[%clk 0:03:00.9]} 1... e5 {[%clk 0:02:59.5]} 2. d4 {[%clk 0:03:00]} 2...
exd4 {[%clk 0:02:55.8]} 3. Qxd4 {[%clk 0:03:00.9]} 3... Nc6 {[%clk 0:02:56]} 4.
Qe3 {[%clk 0:03:00.8]} 4... Nf6 {[%clk 0:02:50.5]} 5. Bd2 {[%clk 0:03:00.5]}
5... Bb4 {[%clk 0:02:44.8]} 6. a3 {[%clk 0:02:49.1]} 6... Bxd2+ {[%clk
0:02:44.5]} 7. Nxd2 {[%clk 0:02:50]} 7... O-O {[%clk 0:02:42.1]} 8. O-O-O {[%clk
0:02:49.9]} 8... Re8 {[%clk 0:02:41.6]} 9. f4 {[%clk 0:02:33.4]} 9... d6 {[%clk
0:02:40.3]} 10. Bd3 {[%clk 0:02:31.6]} 10... Bg4 {[%clk 0:02:38.8]} 11. Ngf3
{[%clk 0:02:30]} 11... Qe7 {[%clk 0:02:37.8]} 12. h3 {[%clk 0:02:29.8]} 12...
Bxf3 {[%clk 0:02:37.4]} 13. Qxf3 {[%clk 0:02:29.1]} 13... Rad8 {[%clk
0:02:33.2]} 14. g4 {[%clk 0:02:28.3]} 14... h6 {[%clk 0:02:19.9]} 15. h4 {[%clk
0:02:24.4]} 15... Qe6 {[%clk 0:02:13.1]} 16. g5 {[%clk 0:02:17.3]} 16... Nh7
{[%clk 0:01:28.2]} 17. Bc4 {[%clk 0:02:03.1]} 17... Qe7 {[%clk 0:01:28.4]} 18.
g6 {[%clk 0:02:02.8]} 18... Nf6 {[%clk 0:01:21.7]} 19. gxf7+ {[%clk 0:02:02.8]}
19... Kh8 {[%clk 0:01:22.3]} 20. fxe8=Q+ {[%clk 0:02:02.6]} 20... Rxe8 {[%clk
0:01:23]} 21. Rhg1 {[%clk 0:01:53.3]} 21... a6 {[%clk 0:01:22.8]} 22. Rg6 {[%clk
0:01:49.5]} 22... b5 {[%clk 0:01:22.9]} 23. Ba2 {[%clk 0:01:46.4]} 23... Nd4
{[%clk 0:01:22.7]} 24. Qd3 {[%clk 0:01:44]} 24... c5 {[%clk 0:01:20.7]} 25. Rdg1
{[%clk 0:01:42.6]} 25... Nh5 {[%clk 0:01:20.2]} 26. f5 {[%clk 0:01:28.6]} 26...
Qxh4 {[%clk 0:01:10.9]} 27. Qe3 {[%clk 0:01:17.8]} 27... Nxf5 {[%clk 0:00:58.3]}
28. Qf3 {[%clk 0:01:05.1]} 28... Nd4 {[%clk 0:00:54.1]} 29. Qf7 {[%clk
0:00:58.6]} 29... Qe7 {[%clk 0:00:34.6]} 30. Rxh6+ {[%clk 0:00:55.6]} 30... gxh6
{[%clk 0:00:30.2]} 31. Rg8+ {[%clk 0:00:56.5]} 31... Rxg8 {[%clk 0:00:27.6]} 32.
Qxg8# {[%clk 0:00:57.4]} 1-0

[Event "Early-Titled-Tuesday-Blitz-September-05-2023"]
[Site "Chess.com"]
[Date "2023.09.05"]
[Round "6"]
[White "Alexei_Gubajdullin"]
[Black "Angry_Twin"]
[Result "0-1"]
[WhiteElo "2600"]
[BlackElo "2931"]
[TimeControl "180+1"]
[EndTime "9:04:45 PDT"]
[Termination "Angry_Twin won by resignation"]

1. d4 {[%clk 0:02:31.5]} 1... Nf6 {[%clk 0:02:58.2]} 2. Nf3 {[%clk 0:02:30.3]}
2... g6 {[%clk 0:02:58.7]} 3. Bf4 {[%clk 0:02:29]} 3... Bg7 {[%clk 0:02:58.4]}
4. e3 {[%clk 0:02:29.9]} 4... O-O {[%clk 0:02:58.6]} 5. Be2 {[%clk 0:02:30.8]}
5... d6 {[%clk 0:02:59.2]} 6. O-O {[%clk 0:02:31.7]} 6... Nc6 {[%clk 0:02:59.9]}
7. h3 {[%clk 0:02:31.7]} 7... e5 {[%clk 0:02:58.1]} 8. Bh2 {[%clk 0:02:31.2]}
8... Qe7 {[%clk 0:02:58.2]} 9. Nc3 {[%clk 0:02:30.2]} 9... Kh8 {[%clk 0:02:55]}
10. Re1 {[%clk 0:01:59.2]} 10... Bf5 {[%clk 0:02:49.9]} 11. Bb5 {[%clk
0:01:55.1]} 11... Rad8 {[%clk 0:02:47.4]} 12. Bxc6 {[%clk 0:01:49.5]} 12... bxc6
{[%clk 0:02:47.3]} 13. Qe2 {[%clk 0:01:49.6]} 13... e4 {[%clk 0:02:46.5]} 14.
Nd2 {[%clk 0:01:49.4]} 14... h5 {[%clk 0:02:44.4]} 15. Qa6 {[%clk 0:01:48.6]}
15... Qd7 {[%clk 0:02:43.3]} 16. Nc4 {[%clk 0:01:48.3]} 16... Bxh3 {[%clk
0:02:17.3]} 17. gxh3 {[%clk 0:01:48.1]} 17... Qxh3 {[%clk 0:02:18]} 18. Nd2
{[%clk 0:01:47.8]} 18... Ng4 {[%clk 0:02:14.9]} 19. Nf1 {[%clk 0:01:46]} 19...
f5 {[%clk 0:01:50]} 20. Qxc6 {[%clk 0:01:44.4]} 20... Rf7 {[%clk 0:01:33.4]} 21.
Ne2 {[%clk 0:01:40.8]} 21... g5 {[%clk 0:01:29.9]} 22. Bf4 {[%clk 0:01:07.5]}
22... Bh6 {[%clk 0:01:21.9]} 23. Qd5 {[%clk 0:01:02.2]} 23... Rdf8 {[%clk
0:01:20.8]} 24. Bh2 {[%clk 0:01:00.7]} 24... f4 {[%clk 0:01:12.8]} 25. exf4
{[%clk 0:00:22.2]} 25... gxf4 {[%clk 0:01:13.7]} 26. Nxf4 {[%clk 0:00:18.7]}
26... Bxf4 {[%clk 0:01:14.6]} 27. Bxf4 {[%clk 0:00:17.5]} 27... Rxf4 {[%clk
0:01:15.5]} 28. Rxe4 {[%clk 0:00:16.2]} 28... Rxf2 {[%clk 0:01:15.5]} 29. Re7
{[%clk 0:00:14.4]} 29... Rxf1+ {[%clk 0:01:14.8]} 0-1

[Event "Early-Titled-Tuesday-Blitz-September-05-2023"]
[Site "Chess.com"]
[Date "2023.09.05"]
[Round "6"]
[White "Durarbayli"]
[Black "Orlov_Oleg"]
[Result "0-1"]
[WhiteElo "2862"]
[BlackElo "2608"]
[TimeControl "180+1"]
[EndTime "9:04:55 PDT"]
[Termination "Orlov_Oleg won by resignation"]

1. e4 {[%clk 0:03:00.9]} 1... e5 {[%clk 0:02:56.7]} 2. Nf3 {[%clk 0:03:00.8]}
2... Nc6 {[%clk 0:02:56.6]} 3. Bb5 {[%clk 0:03:00.7]} 3... a6 {[%clk 0:02:56.5]}
4. Ba4 {[%clk 0:03:00.9]} 4... Nf6 {[%clk 0:02:56.9]} 5. Qe2 {[%clk 0:03:01.5]}
5... b5 {[%clk 0:02:48.4]} 6. Bb3 {[%clk 0:03:01.3]} 6... Bc5 {[%clk 0:02:34.5]}
7. a4 {[%clk 0:02:58.8]} 7... Rb8 {[%clk 0:02:24]} 8. axb5 {[%clk 0:02:57.4]}
8... axb5 {[%clk 0:02:24.9]} 9. Nc3 {[%clk 0:02:57.7]} 9... b4 {[%clk
0:02:02.7]} 10. Nd5 {[%clk 0:02:56.7]} 10... d6 {[%clk 0:01:54.4]} 11. d3 {[%clk
0:02:31.3]} 11... h6 {[%clk 0:01:51.7]} 12. Be3 {[%clk 0:02:27.6]} 12... Bg4
{[%clk 0:01:42.6]} 13. Bxc5 {[%clk 0:02:23]} 13... dxc5 {[%clk 0:01:43.5]} 14.
Ba4 {[%clk 0:02:23]} 14... Bd7 {[%clk 0:01:01.8]} 15. Bxc6 {[%clk 0:02:14]}
15... Bxc6 {[%clk 0:01:02.7]} 16. Nxe5 {[%clk 0:02:14.6]} 16... Bxd5 {[%clk
0:01:02.7]} 17. exd5 {[%clk 0:02:14.8]} 17... O-O {[%clk 0:01:00.1]} 18. Nc6
{[%clk 0:02:14.8]} 18... Qd6 {[%clk 0:00:43.2]} 19. Nxb8 {[%clk 0:02:08.6]}
19... Re8 {[%clk 0:00:42.5]} 20. Qxe8+ {[%clk 0:02:09.1]} 20... Nxe8 {[%clk
0:00:43.3]} 21. Nc6 {[%clk 0:01:57.2]} 21... Kh7 {[%clk 0:00:42.1]} 22. O-O
{[%clk 0:01:52.3]} 22... Qxd5 {[%clk 0:00:41.7]} 23. Na5 {[%clk 0:01:39.2]}
23... Nd6 {[%clk 0:00:40.2]} 24. Rfe1 {[%clk 0:01:37.6]} 24... Nf5 {[%clk
0:00:39.8]} 25. Nc4 {[%clk 0:01:35.9]} 25... Nd4 {[%clk 0:00:35.6]} 26. Rac1
{[%clk 0:01:23.2]} 26... Qg5 {[%clk 0:00:31.3]} 27. Kf1 {[%clk 0:01:11.5]} 27...
Qf4 {[%clk 0:00:28.2]} 28. Kg1 {[%clk 0:01:08.4]} 28... Ne2+ {[%clk 0:00:27.1]}
29. Kf1 {[%clk 0:00:57.9]} 29... Nxc1 {[%clk 0:00:26.7]} 30. g3 {[%clk
0:00:58.4]} 30... Qf3 {[%clk 0:00:23.1]} 0-1

[Event "Early-Titled-Tuesday-Blitz-September-05-2023"]
[Site "Chess.com"]
[Date "2023.09.05"]
[Round "6"]
[White "Abund"]
[Black "DishonorOnYourCow"]
[Result "1-0"]
[WhiteElo "2724"]
[BlackElo "2547"]
[TimeControl "180+1"]
[EndTime "9:04:55 PDT"]
[Termination "Abund won by resignation"]

1. e4 {[%clk 0:03:00.9]} 1... c5 {[%clk 0:02:56.5]} 2. Nf3 {[%clk 0:03:01.4]}
2... d6 {[%clk 0:02:55.9]} 3. Bb5+ {[%clk 0:03:01.9]} 3... Nd7 {[%clk
0:02:54.1]} 4. c3 {[%clk 0:03:01.5]} 4... a6 {[%clk 0:02:53.8]} 5. Ba4 {[%clk
0:03:02.2]} 5... b5 {[%clk 0:02:53.8]} 6. Bc2 {[%clk 0:03:02.9]} 6... Bb7 {[%clk
0:02:53.3]} 7. O-O {[%clk 0:03:01.9]} 7... Ngf6 {[%clk 0:02:53.1]} 8. Qe2 {[%clk
0:03:02.3]} 8... c4 {[%clk 0:02:51.3]} 9. b3 {[%clk 0:03:02.5]} 9... Qc7 {[%clk
0:02:32.3]} 10. bxc4 {[%clk 0:03:00.5]} 10... bxc4 {[%clk 0:02:31.9]} 11. Na3
{[%clk 0:03:00.5]} 11... Nb6 {[%clk 0:02:29.1]} 12. e5 {[%clk 0:02:48.1]} 12...
dxe5 {[%clk 0:02:00.4]} 13. Nxe5 {[%clk 0:02:44.4]} 13... Rc8 {[%clk 0:02:00.7]}
14. Rb1 {[%clk 0:02:42.3]} 14... e6 {[%clk 0:01:51.7]} 15. Rxb6 {[%clk
0:02:38.2]} 15... Qxb6 {[%clk 0:01:50.6]} 16. Ba4+ {[%clk 0:02:38.6]} 16... Kd8
{[%clk 0:01:34.6]} 17. Nxf7+ {[%clk 0:02:31.8]} 17... Kc7 {[%clk 0:01:34.1]} 18.
Nxc4 {[%clk 0:02:15.7]} 18... Qc5 {[%clk 0:01:25.9]} 19. Nxh8 {[%clk 0:02:13.4]}
19... Kb8 {[%clk 0:01:19.2]} 20. Qe5+ {[%clk 0:02:12.8]} 20... Ka7 {[%clk
0:00:52.2]} 21. Qxc5+ {[%clk 0:02:11.2]} 21... Rxc5 {[%clk 0:00:50.8]} 22. Bb3
{[%clk 0:02:06.5]} 22... Bd5 {[%clk 0:00:46.2]} 23. d3 {[%clk 0:02:04.7]} 23...
Rc7 {[%clk 0:00:45.5]} 24. Bf4 {[%clk 0:02:01.6]} 24... Rb7 {[%clk 0:00:42.3]}
25. Ne5 {[%clk 0:01:56.1]} 25... Bxb3 {[%clk 0:00:41.3]} 26. axb3 {[%clk
0:01:53.3]} 26... Rxb3 {[%clk 0:00:42.2]} 27. c4 {[%clk 0:01:50]} 27... Bc5
{[%clk 0:00:34.9]} 28. Nhf7 {[%clk 0:01:48.8]} 28... a5 {[%clk 0:00:27.4]} 29.
Nd8 {[%clk 0:01:46.7]} 29... a4 {[%clk 0:00:19.6]} 30. Nxe6 {[%clk 0:01:46.4]}
30... Bb4 {[%clk 0:00:18.9]} 31. Nd4 {[%clk 0:01:36.6]} 31... Rb2 {[%clk
0:00:18.8]} 32. Nec6+ {[%clk 0:01:32.4]} 32... Kb6 {[%clk 0:00:18.2]} 33. Nxb4
{[%clk 0:01:32.7]} 33... Rxb4 {[%clk 0:00:19.1]} 34. Be3 {[%clk 0:01:31.3]}
34... Ka6 {[%clk 0:00:18]} 35. Ra1 {[%clk 0:01:29.1]} 35... Nd7 {[%clk
0:00:16.7]} 36. Nc6 {[%clk 0:01:26]} 36... Rb2 {[%clk 0:00:14]} 37. Rxa4+ {[%clk
0:01:26]} 37... Kb7 {[%clk 0:00:14.1]} 38. Na5+ {[%clk 0:01:26]} 38... Ka6
{[%clk 0:00:12.6]} 39. Ra1 {[%clk 0:01:26.9]} 39... Ne5 {[%clk 0:00:11.5]} 40.
Nb3+ {[%clk 0:01:24.9]} 40... Kb7 {[%clk 0:00:11.1]} 41. Nc5+ {[%clk 0:01:25.2]}
41... Kc6 {[%clk 0:00:11.1]} 42. h3 {[%clk 0:01:25.7]} 1-0

[Event "Early-Titled-Tuesday-Blitz-September-05-2023"]
[Site "Chess.com"]
[Date "2023.09.05"]
[Round "6"]
[White "suyu28"]
[Black "Massakru"]
[Result "1-0"]
[WhiteElo "2727"]
[BlackElo "2428"]
[TimeControl "180+1"]
[EndTime "9:04:58 PDT"]
[Termination "suyu28 won on time"]

1. d4 {[%clk 0:03:00.9]} 1... Nf6 {[%clk 0:02:59.6]} 2. c4 {[%clk 0:03:00.7]}
2... e6 {[%clk 0:02:58.8]} 3. Nf3 {[%clk 0:03:01]} 3... d5 {[%clk 0:02:57.6]} 4.
g3 {[%clk 0:03:01.4]} 4... Be7 {[%clk 0:02:57]} 5. Bg2 {[%clk 0:03:01.3]} 5...
O-O {[%clk 0:02:57.5]} 6. O-O {[%clk 0:03:01.9]} 6... c6 {[%clk 0:02:57.7]} 7.
Nbd2 {[%clk 0:02:58.9]} 7... Re8 {[%clk 0:02:56.9]} 8. Qc2 {[%clk 0:02:59.2]}
8... Nbd7 {[%clk 0:02:56.4]} 9. e4 {[%clk 0:02:59.1]} 9... dxe4 {[%clk
0:02:50.6]} 10. Nxe4 {[%clk 0:03:00]} 10... c5 {[%clk 0:02:45.9]} 11. Nxf6+
{[%clk 0:02:51.5]} 11... Bxf6 {[%clk 0:02:41.3]} 12. Rd1 {[%clk 0:02:52.2]}
12... cxd4 {[%clk 0:02:39.8]} 13. Nxd4 {[%clk 0:02:52.3]} 13... Qe7 {[%clk
0:02:30.7]} 14. Nb5 {[%clk 0:02:45.2]} 14... Nc5 {[%clk 0:02:19.6]} 15. Be3
{[%clk 0:02:44.8]} 15... Na6 {[%clk 0:01:45.5]} 16. Qb3 {[%clk 0:02:36.2]} 16...
e5 {[%clk 0:01:03.1]} 17. Nxa7 {[%clk 0:02:29.1]} 17... Nc5 {[%clk 0:00:58.1]}
18. Nxc8 {[%clk 0:02:19.7]} 18... Rexc8 {[%clk 0:00:45.9]} 19. Qb4 {[%clk
0:02:12.1]} 19... Rab8 {[%clk 0:00:41.8]} 20. Rd5 {[%clk 0:02:06.7]} 20... b6
{[%clk 0:00:40.5]} 21. Rad1 {[%clk 0:02:05.1]} 21... g6 {[%clk 0:00:30.2]} 22.
Rd6 {[%clk 0:02:03.8]} 22... e4 {[%clk 0:00:20.3]} 23. Rxb6 {[%clk 0:01:56]}
23... Rxb6 {[%clk 0:00:16.5]} 24. Qxb6 {[%clk 0:01:56.9]} 24... Nd3 {[%clk
0:00:13.9]} 25. b3 {[%clk 0:01:54.9]} 25... Bg7 {[%clk 0:00:06.9]} 26. a4 {[%clk
0:01:44.7]} 26... f5 {[%clk 0:00:06.5]} 27. a5 {[%clk 0:01:44.5]} 27... Bf8
{[%clk 0:00:03.1]} 28. a6 {[%clk 0:01:43.8]} 28... Qa3 {[%clk 0:00:02.7]} 29.
Qb7 {[%clk 0:01:38.9]} 29... Rd8 {[%clk 0:00:02.1]} 30. Bf1 {[%clk 0:01:26]}
30... Qa5 {[%clk 0:00:01.1]} 31. Bxd3 {[%clk 0:01:22.4]} 31... exd3 {[%clk
0:00:01]} 32. Bb6 {[%clk 0:01:15.3]} 1-0

[Event "Early-Titled-Tuesday-Blitz-September-05-2023"]
[Site "Chess.com"]
[Date "2023.09.05"]
[Round "6"]
[White "WiktoriaPOL"]
[Black "Flaccidmoves"]
[Result "0-1"]
[WhiteElo "2289"]
[BlackElo "2481"]
[TimeControl "180+1"]
[EndTime "9:05:00 PDT"]
[Termination "Flaccidmoves won by checkmate"]

1. c4 {[%clk 0:02:59.9]} 1... e6 {[%clk 0:02:58.7]} 2. Nc3 {[%clk 0:02:58.6]}
2... d5 {[%clk 0:02:59.3]} 3. d4 {[%clk 0:02:58.1]} 3... Be7 {[%clk 0:02:59]} 4.
cxd5 {[%clk 0:02:57.5]} 4... exd5 {[%clk 0:02:59.9]} 5. Bf4 {[%clk 0:02:56.7]}
5... c6 {[%clk 0:02:57.5]} 6. Nf3 {[%clk 0:02:53.8]} 6... Bf5 {[%clk 0:02:56.3]}
7. e3 {[%clk 0:02:48.1]} 7... Nd7 {[%clk 0:02:54.9]} 8. Bd3 {[%clk 0:02:36.6]}
8... Bxd3 {[%clk 0:02:53.4]} 9. Qxd3 {[%clk 0:02:35.2]} 9... Ngf6 {[%clk
0:02:54]} 10. O-O {[%clk 0:02:32.2]} 10... O-O {[%clk 0:02:54.6]} 11. Rab1
{[%clk 0:02:19.6]} 11... a5 {[%clk 0:02:34.8]} 12. a3 {[%clk 0:02:13.8]} 12...
Re8 {[%clk 0:02:27.4]} 13. b4 {[%clk 0:02:09.7]} 13... axb4 {[%clk 0:02:28.3]}
14. axb4 {[%clk 0:02:09.6]} 14... b5 {[%clk 0:02:13.4]} 15. Ne5 {[%clk 0:02:08]}
15... Nxe5 {[%clk 0:01:58.8]} 16. dxe5 {[%clk 0:02:03.1]} 16... Nh5 {[%clk
0:01:54]} 17. Rfc1 {[%clk 0:01:46.6]} 17... Ra3 {[%clk 0:01:36]} 18. Qd4 {[%clk
0:01:32.9]} 18... Qd7 {[%clk 0:01:21.2]} 19. Ne4 {[%clk 0:01:03.6]} 19... Ra4
{[%clk 0:01:06.7]} 20. Nc5 {[%clk 0:01:02.2]} 20... Bxc5 {[%clk 0:01:06.1]} 21.
Qxc5 {[%clk 0:00:51.4]} 21... Re6 {[%clk 0:01:01.1]} 22. Ra1 {[%clk 0:00:42.3]}
22... Rxa1 {[%clk 0:00:51.1]} 23. Rxa1 {[%clk 0:00:40.6]} 23... h6 {[%clk
0:00:50.7]} 24. Ra8+ {[%clk 0:00:35.5]} 24... Re8 {[%clk 0:00:34.9]} 25. Ra7
{[%clk 0:00:31.1]} 25... Qf5 {[%clk 0:00:27.7]} 26. Qxc6 {[%clk 0:00:28.8]}
26... Qb1+ {[%clk 0:00:26.8]} 27. Qc1 {[%clk 0:00:25.9]} 27... Qxc1# {[%clk
0:00:27.2]} 0-1

[Event "Early-Titled-Tuesday-Blitz-September-05-2023"]
[Site "Chess.com"]
[Date "2023.09.05"]
[Round "6"]
[White "Chessdude1987"]
[Black "Zurability"]
[Result "0-1"]
[WhiteElo "2427"]
[BlackElo "2706"]
[TimeControl "180+1"]
[EndTime "9:05:01 PDT"]
[Termination "Zurability won by checkmate"]

1. e4 {[%clk 0:03:00.9]} 1... c5 {[%clk 0:02:58.7]} 2. Nf3 {[%clk 0:02:59.3]}
2... d6 {[%clk 0:02:59.3]} 3. Bc4 {[%clk 0:02:58.7]} 3... Nf6 {[%clk 0:02:59.5]}
4. d3 {[%clk 0:02:58.5]} 4... g6 {[%clk 0:02:58.1]} 5. c3 {[%clk 0:02:55.6]}
5... Bg7 {[%clk 0:02:57.9]} 6. O-O {[%clk 0:02:54.9]} 6... O-O {[%clk
0:02:58.5]} 7. Re1 {[%clk 0:02:54.2]} 7... Nc6 {[%clk 0:02:59]} 8. d4 {[%clk
0:02:51.9]} 8... cxd4 {[%clk 0:02:51.9]} 9. cxd4 {[%clk 0:02:51.7]} 9... d5
{[%clk 0:02:52]} 10. exd5 {[%clk 0:02:49.2]} 10... Nxd5 {[%clk 0:02:52.1]} 11.
Nc3 {[%clk 0:02:46.4]} 11... Nb6 {[%clk 0:02:50.8]} 12. Bb3 {[%clk 0:02:35.6]}
12... Nxd4 {[%clk 0:02:51]} 13. Ne5 {[%clk 0:02:30.4]} 13... Nxb3 {[%clk
0:02:49]} 14. Qxb3 {[%clk 0:02:28.2]} 14... Be6 {[%clk 0:02:49]} 15. Qc2 {[%clk
0:02:22.7]} 15... Qd4 {[%clk 0:02:38.6]} 16. Nb5 {[%clk 0:02:06.2]} 16... Qb4
{[%clk 0:01:55.9]} 17. Nc3 {[%clk 0:02:06]} 17... Rac8 {[%clk 0:01:53]} 18. Bg5
{[%clk 0:01:53.6]} 18... Bf5 {[%clk 0:01:40.8]} 19. Qe2 {[%clk 0:01:53]} 19...
f6 {[%clk 0:01:39.1]} 20. g4 {[%clk 0:01:31.5]} 20... fxg5 {[%clk 0:01:00]} 21.
gxf5 {[%clk 0:01:27.5]} 21... Rxf5 {[%clk 0:01:00.9]} 22. Nxg6 {[%clk
0:01:20.8]} 22... hxg6 {[%clk 0:00:57.5]} 23. Qxe7 {[%clk 0:01:00.6]} 23... Qg4+
{[%clk 0:00:54.7]} 24. Kh1 {[%clk 0:00:46.9]} 24... Rxf2 {[%clk 0:00:49.9]} 25.
Qe4 {[%clk 0:00:46.1]} 25... Qh3 {[%clk 0:00:46.3]} 26. Qe6+ {[%clk 0:00:42.3]}
26... Qxe6 {[%clk 0:00:46]} 27. Rxe6 {[%clk 0:00:42.4]} 27... Bxc3 {[%clk
0:00:45]} 28. bxc3 {[%clk 0:00:42.1]} 28... Rxc3 {[%clk 0:00:45.9]} 29. Rxg6+
{[%clk 0:00:41.9]} 29... Kf7 {[%clk 0:00:43]} 30. Rxg5 {[%clk 0:00:41.5]} 30...
Rcc2 {[%clk 0:00:43.1]} 31. Rh5 {[%clk 0:00:41.5]} 31... Rxa2 {[%clk 0:00:42.2]}
32. Rc1 {[%clk 0:00:40]} 32... Rac2 {[%clk 0:00:42.3]} 33. Rg1 {[%clk
0:00:36.4]} 33... Nc4 {[%clk 0:00:36]} 34. Rh7+ {[%clk 0:00:36]} 34... Ke6
{[%clk 0:00:35.3]} 35. Rxb7 {[%clk 0:00:33.5]} 35... Rxh2# {[%clk 0:00:35]} 0-1